fUSD/lending_fUSD_20260128
["ID","MTS","AMOUNT","RATE_DAILY","PERIOD"]
[403832405,1769574645306,-601.3,0.00017236,2]
[403832406,1769574645315,-500.0,0.00017238,2]
[403832407,1769574645324,-500.0,0.00017238,2]
[403832408,1769574645334,-468.80019516,0.00017238,2]
[403832409,1769574645343,-804.0,0.00017238,2]
[403832410,1769574645352,-233.51889341,0.00017264,2]
[403832411,1769574645362,-363.51122534,0.00017293,2]
[403832412,1769574645371,-503.52186183,0.00017293,2]
[403832413,1769574645380,-804.0,0.00017293,2]
[403832414,1769574645390,-242.15909246,0.00017319,2]
[403832415,1769574645399,-804.0,0.00017348,2]
[403832416,1769574645408,-251.11897888,0.00017374,2]
[403832417,1769574645417,-201.0,0.00017379,2]
[403832418,1769574645432,-14060.5727196,0.00017381,2]
[403832419,1769574645441,-804.0,0.00017402,2]
[403832420,1769574645450,-260.4103811,0.00017429,2]
[403832421,1769574645459,-804.0,0.00017457,2]
[403832422,1769574645471,-500.0,0.00017478,2]
[403832423,1769574645481,-385.02006328,0.00017481,2]
[403832424,1769574645490,-270.0455652,0.00017484,2]
[403832425,1769574645499,-4800.0,0.000175,6]
[403832426,1769574645508,-897.96857683,0.00017505,2]
[403832427,1769574645518,-344.0,0.00017511,2]
[403832428,1769574645528,-804.0,0.00017512,2]
[403832433,1769574645802,-280.03725112,0.00017539,2]
[403832434,1769574645812,-201.0,0.00017549,2]
[403832435,1769574645822,-201.0,0.00017551,2]
[403832436,1769574645831,-344.0,0.0001756,2]
[403832437,1769574645840,-804.0,0.00017567,2]
[403832438,1769574645849,-290.39862941,0.00017594,2]
[403832439,1769574645859,-6500.0,0.000176,6]
[403832440,1769574645868,-344.0,0.0001761,2]
[403832441,1769574645877,-804.0,0.00017622,2]
[403832442,1769574645886,-674.63684387,0.0001764,2]
[403832443,1769574645896,-11056.24080446,0.00017641,2]
[403832444,1769574645905,-14060.5727196,0.00017641,2]
[403832445,1769574645914,-181.08010149,0.00017647,2]
[403832446,1769574645924,-885.86649465,0.00017647,2]
[403832447,1769574645933,-301.1433787,0.00017649,2]
[403832448,1769574645942,-1000.0,0.00017664,2]
[403832449,1769574645951,-804.0,0.00017676,2]
[403832450,1769574645961,-344.0,0.00017677,2]
[403832451,1769574645970,-8100.0,0.000177,6]
[403832452,1769574645979,-877.25345748,0.00017719,2]
[403832453,1769574645988,-804.0,0.00017731,2]
[403832454,1769574645998,-804.0,0.00017786,2]
[403832455,1769574646007,-855.0,0.00017798,2]
[403832456,1769574646016,-1127.64944239,0.00017799,2]
[403832457,1769574646025,-1989.30728094,0.00017799,2]
[403832458,1769574646034,-2975.88471963,0.00017799,2]
[403832459,1769574646043,-1600.0,0.000178,6]
[403832460,1769574646052,-397.0,0.00017802,2]
[403832461,1769574646062,-225.4,0.00017832,2]
[403832462,1769574646072,-804.0,0.00017841,2]
[403832463,1769574646082,-200.0,0.00017855,2]
[403832464,1769574646092,-200.0,0.00017856,2]
[403832465,1769574646103,-804.0,0.00017895,2]
[403832466,1769574646112,-522.13176756,0.00017896,2]
[403832467,1769574646121,-522.13176755,0.00017898,2]
[403832468,1769574646131,-11056.24080446,0.000179,2]
[403832469,1769574646140,-522.13176755,0.000179,2]
[403832470,1769574646149,-1600.0,0.000179,6]
[403832471,1769574646159,-152.15367678,0.000179,3]
[403832472,1769574646168,-14060.5727196,0.000179,2]
[403832473,1769574646178,-496.56720138,0.000179,2]
[403832474,1769574646187,-217.13537466,0.000179,2]
[403832475,1769574646197,-8827.0,0.000179,2]
[403832476,1769574646206,-1000.0,0.00017919,2]
[403832477,1769574646215,-2000.0,0.0001795,2]
[403832478,1769574646226,-2000.0,0.0001795,2]
[403832479,1769574646235,-2000.0,0.0001795,2]
[403832480,1769574646246,-2000.0,0.0001795,2]
[403832481,1769574646257,-2000.0,0.0001795,2]
[403832482,1769574646267,-2000.0,0.0001795,2]
[403832483,1769574646278,-2000.0,0.0001795,2]
[403832484,1769574646288,-414.896,0.0001795,2]
[403832485,1769574646298,-827.35924827,0.0001795,2]
[403832486,1769574646307,-1000.0,0.0001797,2]
[403832487,1769574646319,-986.689,0.00017973,2]
[403832488,1769574646328,-500.0,0.00017973,2]
[403832489,1769574646338,-150.0,0.00017973,2]
[403832490,1769574646347,-1000.0,0.00017982,2]
[403832491,1769574646356,-1000.0,0.00017982,2]
[403832492,1769574646366,-1000.0,0.00017982,2]
[403832493,1769574646376,-1000.0,0.00017982,2]
[403832494,1769574646389,-502.48269816,0.00017982,2]
[403832495,1769574646398,-222.7140054,0.00017982,2]
[403832496,1769574646407,-401.0,0.00017983,2]
[403832497,1769574646418,-328.41754599,0.0001799,2]
[403832498,1769574646428,-328.41754599,0.0001799,2]
[403832499,1769574646437,-192.79862973,0.00017995,2]
[403832500,1769574646448,-500.0,0.00017995,2]
[403832501,1769574646457,-500.0,0.00017995,2]
[403832502,1769574646468,-524.93822417,0.00017995,2]
[403832503,1769574646479,-511.31408016,0.00017995,2]
[403832504,1769574646488,-272900.4999988,0.00017996,2]
[403832505,1769574646497,-4647.1846652,0.00017996,2]
[403832506,1769574646507,-12267.8689974,0.00017996,2]
[403832508,1769574646517,-1176.3957662,0.00017996,2]
[403832509,1769574646526,-61324.761984,0.00017996,2]
[403832510,1769574646534,-151.0,0.00017996,2]
[403832511,1769574646544,-151.0,0.00017996,2]
[403832512,1769574646553,-150.0,0.00017999,2]
[403832513,1769574646564,-150.0,0.00017999,2]
[403832514,1769574646573,-183.10914216,0.00017999,2]
[403832515,1769574646583,-300.0,0.00017999,2]
[403832516,1769574646591,-300.0,0.00017999,2]
[403832517,1769574646601,-500.0,0.00017999,2]
[403832518,1769574646613,-515.28066526,0.00017999,2]
[403832519,1769574646622,-300.0,0.00017999,2]
[403832520,1769574646631,-676.0490308,0.00017999,2]
[403832521,1769574646641,-13998.35686924,0.00017999,2]
[403832522,1769574646650,-300.0,0.00017999,2]
[403832523,1769574646659,-300.0,0.00017999,2]
[403832524,1769574646669,-300.0,0.00017999,2]
[403832525,1769574646679,-666.0,0.00017999,2]
[403832526,1769574646689,-243.65670637,0.00017999,2]
[403832527,1769574646704,-1945534.92829338,0.00018,2]
[403832528,1769574646714,-623073.19063289,0.00018,2]
[403832529,1769574646733,-429.22884342,0.00018,2]
[403832530,1769574646765,-585.00775334,0.00018,2]
[403832531,1769574646776,-1054.5199346,0.00018,2]
[403832532,1769574646850,-254.35801595,0.00018,2]
[403832533,1769574647613,-151.0,0.00015643,2]
[403832534,1769574647623,-2530.7102304,0.00018,2]
[403832535,1769574647650,-374.36990935,0.00018,2]
[403832536,1769574648033,-289.16,0.0001584,2]
[403832537,1769574648042,-7265.32005327,0.00018,2]
[403832538,1769574648074,-8885.2,0.00018,2]
[403832588,1769574728320,200.0,0.000149,5]
[403832591,1769574762583,1000.0,0.000149,5]
[403832812,1769575582835,-500.0,0.00015015,2]
[403832813,1769575582867,-500.0,0.00015015,2]
[403832814,1769575582895,-500.0,0.00015015,2]
[403832815,1769575582925,-839.0,0.00015015,2]
[403832816,1769575582952,-500.0,0.00015015,2]
[403832818,1769575631816,1400.0,0.000148,5]
[403832819,1769575633908,2900.0,0.000149,5]
[403832844,1769575690585,150.0,0.00015015,2]
[403832845,1769575690758,500.0,0.00015015,2]
[403832846,1769575690967,157.26285183,0.00015015,2]
[403832847,1769575691276,150.0,0.00015015,2]
[403832848,1769575691969,203.06487634,0.00015015,2]
[403832849,1769575692120,500.0,0.00015015,2]
[403832850,1769575692201,500.0,0.00015015,2]
[403832851,1769575693984,500.0,0.00015015,2]
[403832852,1769575694020,150.0,0.00015015,2]
[403832853,1769575694111,150.0,0.00015015,2]
[403832854,1769575704321,166.66,0.00014782,2]
[403832855,1769575787177,-2976.94552683,0.00015024,2]
[403832856,1769575787208,-10000.01,0.00015024,2]
[403832857,1769575787316,-2186.34686728,0.00015024,2]
[403832858,1769575792936,252.83,0.00014322,2]
[403832859,1769575793137,252.83,0.00014345,2]
[403832860,1769575793359,252.83,0.00014367,2]
[403832861,1769575793911,252.83,0.0001439,2]
[403832862,1769575793946,252.83,0.00014413,2]
[403832863,1769575793977,252.83,0.00014435,2]
[403832864,1769575794192,252.83,0.00014458,2]
[403832865,1769575794384,252.83,0.0001448,2]
[403832866,1769575794577,252.83,0.00014503,2]
[403832867,1769575794785,252.83,0.00014526,2]
[403832868,1769575794994,252.83,0.00014548,2]
[403832869,1769575795216,252.83,0.00014571,2]
[403832870,1769575795431,252.83,0.00014593,2]
[403832871,1769575795649,252.83,0.00014616,2]
[403832872,1769575795847,252.83,0.00014639,2]
[403832873,1769575796064,252.83,0.00014661,2]
[403832874,1769575796264,252.83,0.00014684,2]
[403832875,1769575796481,252.83,0.00014706,2]
[403832876,1769575796687,252.83,0.00014729,2]
[403832877,1769575796889,252.83,0.00014752,2]
[403832900,1769575831935,-335.33,0.00015034,2]
[403832901,1769575831946,-246.68613807,0.00015042,2]
[403832902,1769575831956,-195.0,0.00015049,2]
[403832903,1769575831966,-298.0,0.00015069,2]
[403832904,1769575831975,-93.16740438,0.00015069,2]
[403832905,1769575831991,-257.87596969,0.00015069,2]
[403832906,1769575832005,-773.95662593,0.00015069,2]
[403832907,1769575832014,-300.0,0.00015069,2]
[403832908,1769575832024,-99.61552377,0.00015069,2]
[403832909,1769575832035,-259.39015822,0.00015069,2]
[403832910,1769575832050,-438.3991851,0.00015069,2]
[403832911,1769575832061,-352.59879329,0.00015069,2]
[403832912,1769575832072,-49.99633962,0.00015069,2]
[403832913,1769575832082,-500.0,0.0001507,2]
[403832914,1769575832091,-500.0,0.0001507,2]
[403832915,1769575832100,-96.96048366,0.0001507,2]
[403832916,1769575832111,-403.03951634,0.0001507,2]
[403832917,1769575832121,-839.0,0.0001507,2]
[403832918,1769575832130,-500.0,0.0001507,2]
[403832919,1769575832140,-150.0,0.0001507,2]
[403832920,1769575832149,-500.0,0.0001507,2]
[403832921,1769575832159,-500.0,0.0001507,2]
[403832922,1769575832170,-500.0,0.0001507,2]
[403832923,1769575832179,-151.0,0.00015095,2]
[403832924,1769575832190,-18499.54610767,0.00015098,2]
[403832925,1769575832202,-108806.27614097,0.00015098,2]
[403832926,1769575832214,-495.26222895,0.00015098,2]
[403832930,1769575832242,-1036.43509506,0.00015098,2]
[403832932,1769575832253,-13342.09978137,0.00015098,2]
[403832935,1769575832264,-605.71259571,0.00015098,2]
[403832937,1769575832274,-449.66614174,0.00015098,2]
[403832940,1769575832290,-729.51283028,0.00015098,2]
[403832978,1769575838211,-207.52123892,0.00015097,2]
[403832979,1769575838220,-262.8346166,0.00015097,2]
[403832980,1769575838230,-500.0,0.00015097,2]
[403832981,1769575838239,-188.56873349,0.00015097,2]
[403832982,1769575838248,-500.0,0.00015097,2]
[403832983,1769575838258,-236.04408561,0.00015097,2]
[403832984,1769575838268,-500.0,0.00015097,2]
[403832985,1769575838276,-521.96240016,0.00015097,2]
[403832986,1769575838285,-500.0,0.00015097,2]
[403832987,1769575838295,-181.14560038,0.00015097,2]
[403832988,1769575838304,-500.0,0.00015097,2]
[403832989,1769575838313,-500.0,0.00015097,2]
[403832990,1769575838322,-129.39173764,0.00015097,2]
[403832991,1769575838337,-370.60826236,0.00015097,2]
[403832992,1769575838347,-500.0,0.00015097,2]
[403832993,1769575838356,-500.0,0.00015097,2]
[403832994,1769575838365,-500.0,0.00015097,2]
[403832995,1769575838374,-500.0,0.00015097,2]
[403832996,1769575838384,-500.0,0.00015097,2]
[403832997,1769575838393,-500.0,0.00015097,2]
[403832998,1769575838403,-344.62058178,0.00015097,2]
[403833008,1769575840177,-155.37941822,0.00015097,2]
[403833009,1769575840186,-500.0,0.00015097,2]
[403833010,1769575840195,-500.0,0.00015097,2]
[403833011,1769575840204,-212.43551565,0.00015097,2]
[403833012,1769575840213,-500.0,0.00015097,2]
[403833013,1769575840222,-500.0,0.00015097,2]
[403833014,1769575840231,-500.0,0.00015097,2]
[403833015,1769575840241,-500.0,0.00015097,2]
[403833016,1769575840250,-500.0,0.00015097,2]
[403833017,1769575840260,-500.0,0.00015097,2]
[403833018,1769575840270,-500.0,0.00015097,2]
[403833019,1769575840279,-500.0,0.00015097,2]
[403833020,1769575840289,-856035.48907825,0.00015098,2]
[403833021,1769575840299,-300.0,0.00015124,2]
[403833022,1769575840308,-500.0,0.00015125,2]
[403833023,1769575840317,-500.0,0.00015125,2]
[403833024,1769575840326,-500.0,0.00015125,2]
[403833025,1769575840335,-839.0,0.00015125,2]
[403833026,1769575840344,-500.0,0.00015125,2]
[403833027,1769575840353,-150.0,0.00015125,2]
[403833028,1769575840363,-500.0,0.00015125,2]
[403833029,1769575840372,-500.0,0.00015125,2]
[403833030,1769575840381,-500.0,0.00015125,2]
[403833031,1769575840390,-377.38838793,0.00015179,2]
[403833032,1769575840399,-500.0,0.00015179,2]
[403833033,1769575840408,-500.0,0.00015179,2]
[403833034,1769575840417,-839.0,0.00015179,2]
[403833035,1769575840426,-500.0,0.00015179,2]
[403833036,1769575840435,-281.4338574,0.00015179,2]
[403833037,1769575840443,-500.0,0.00015179,2]
[403833038,1769575840452,-500.0,0.00015179,2]
[403833039,1769575840461,-500.0,0.00015179,2]
[403833040,1769575840470,-1085.8,0.00015196,2]
[403833041,1769575840479,-500.0,0.00015196,2]
[403833042,1769575840488,-161.0053,0.00015198,2]
[403833043,1769575840497,-89241.6055,0.00015198,2]
[403833044,1769575840505,-248.8521,0.00015198,2]
[403833045,1769575840514,-150.00043156,0.00015223,2]
[403833046,1769575840523,-500.0,0.00015234,2]
[403833047,1769575840533,-500.0,0.00015234,2]
[403833048,1769575840541,-839.0,0.00015234,2]
[403833049,1769575840550,-500.0,0.00015234,2]
[403833050,1769575840559,-500.0,0.00015234,2]
[403833051,1769575840568,-500.0,0.00015234,2]
[403833052,1769575840577,-500.0,0.00015234,2]
[403833053,1769575840586,-166.66,0.0001527,2]
[403833054,1769575840595,-328.41754599,0.00015279,2]
[403833055,1769575840603,-500.0,0.00015289,2]
[403833056,1769575840612,-500.0,0.00015289,2]
[403833057,1769575840621,-839.0,0.00015289,2]
[403833058,1769575840630,-615.49006321,0.00015289,2]
[403833059,1769575840639,-500.0,0.00015289,2]
[403833060,1769575840648,-500.0,0.00015289,2]
[403833062,1769575840657,-500.0,0.00015289,2]
[403833063,1769575840667,-500.0,0.00015289,2]
[403833064,1769575840676,-150.0,0.00015289,2]
[403833066,1769575840685,-150.0,0.00015289,2]
[403833067,1769575840694,-150.70133408,0.00015289,2]
[403833068,1769575840703,-500.0,0.00015289,2]
[403833069,1769575840712,-500.0,0.00015289,2]
[403833070,1769575840721,-150.0,0.00015289,2]
[403833071,1769575840731,-500.0,0.00015289,2]
[403833072,1769575840740,-500.0,0.00015289,2]
[403833073,1769575840749,-500.0,0.00015289,2]
[403833074,1769575840758,-150.0,0.00015289,2]
[403833075,1769575840768,-150.0,0.00015289,2]
[403833076,1769575840778,-500.0,0.00015289,2]
[403833077,1769575840788,-500.0,0.00015289,2]
[403833078,1769575840796,-500.0,0.00015289,2]
[403833079,1769575840806,-213.25042822,0.00015289,2]
[403833080,1769575840815,-500.0,0.00015289,2]
[403833081,1769575840828,-500.0,0.00015289,2]
[403833083,1769575840838,-500.0,0.00015289,2]
[403833085,1769575840847,-249.13238104,0.00015289,2]
[403833086,1769575840856,-150.0,0.00015289,2]
[403833087,1769575840866,-500.0,0.00015289,2]
[403833088,1769575840876,-150.0,0.00015289,2]
[403833090,1769575840885,-243.9850094,0.00015289,2]
[403833091,1769575840896,-150.0,0.00015289,2]
[403833092,1769575840905,-150.0,0.00015289,2]
[403833093,1769575840914,-150.0,0.00015289,2]
[403833094,1769575840923,-150.0,0.00015289,2]
[403833095,1769575840933,-500.0,0.00015289,2]
[403833096,1769575840942,-150.0,0.00015289,2]
[403833097,1769575840951,-202.74321403,0.00015289,2]
[403833098,1769575840960,-701.0,0.000153,2]
[403833099,1769575840970,-1908.0,0.00015331,2]
[403833100,1769575840983,-708.0,0.00015332,2]
[403833101,1769575841002,-1982.937,0.00015343,2]
[403833102,1769575841019,-182.381,0.00015343,2]
[403833103,1769575841029,-15163.30239407,0.00015344,2]
[403833104,1769575841040,-223.82378677,0.00015344,2]
[403833105,1769575841050,-500.0,0.00015344,2]
[403833106,1769575841059,-839.0,0.00015344,2]
[403833107,1769575841070,-610.0,0.00015344,2]
[403833108,1769575841087,-500.0,0.00015344,2]
[403833109,1769575841109,-500.27618672,0.00015344,2]
[403833110,1769575841129,-500.0,0.00015344,2]
[403833111,1769575841143,-150.0,0.00015344,2]
[403833112,1769575841152,-277.63546874,0.00015344,2]
[403833113,1769575841161,-500.0,0.00015344,2]
[403833114,1769575841171,-500.0,0.00015344,2]
[403833115,1769575841181,-150.0,0.00015344,2]
[403833116,1769575841190,-500.0,0.00015344,2]
[403833117,1769575841199,-500.0,0.00015344,2]
[403833118,1769575841208,-502.30791208,0.00015344,2]
[403833119,1769575841218,-150.0,0.00015344,2]
[403833120,1769575841227,-150.19824857,0.00015344,2]
[403833121,1769575841237,-500.0,0.00015344,2]
[403833122,1769575841246,-502.30789836,0.00015344,2]
[403833123,1769575841255,-500.0,0.00015344,2]
[403833124,1769575841264,-500.0,0.00015344,2]
[403833125,1769575841273,-500.0,0.00015344,2]
[403833126,1769575841282,-500.0,0.00015344,2]
[403833127,1769575841291,-150.0,0.00015344,2]
[403833128,1769575841300,-500.0,0.00015344,2]
[403833129,1769575841309,-150.0,0.00015344,2]
[403833130,1769575841320,-150.0,0.00015344,2]
[403833131,1769575841329,-150.0,0.00015344,2]
[403833132,1769575841338,-500.0,0.00015344,2]
[403833133,1769575841347,-150.0,0.00015344,2]
[403833134,1769575841357,-1274.0,0.00015361,2]
[403833135,1769575841366,-461.41254109,0.00015361,2]
[403833136,1769575841375,-500.0,0.00015372,2]
[403833137,1769575841384,-151.0,0.00015372,2]
[403833138,1769575841393,-151.0,0.00015372,2]
[403833139,1769575841402,-151.0,0.00015372,2]
[403833140,1769575841412,-151.0,0.00015372,2]
[403833141,1769575841421,-151.0,0.00015372,2]
[403833142,1769575841430,-151.0,0.00015372,2]
[403833143,1769575841440,-151.0,0.00015372,2]
[403833144,1769575841449,-151.0,0.00015372,2]
[403833145,1769575841458,-151.0,0.00015372,2]
[403833146,1769575841467,-151.0,0.00015372,2]
[403833147,1769575841476,-151.0,0.00015372,2]
[403833148,1769575841485,-151.0,0.00015372,2]
[403833149,1769575841494,-151.0,0.00015372,2]
[403833150,1769575841503,-151.0,0.00015372,2]
[403833151,1769575841514,-151.0,0.00015372,2]
[403833152,1769575841523,-151.0,0.00015372,2]
[403833153,1769575841532,-151.0,0.00015372,2]
[403833154,1769575841541,-305.46862024,0.00015372,2]
[403833155,1769575841550,-151.0,0.00015372,2]
[403833156,1769575841559,-151.0,0.00015372,2]
[403833157,1769575841572,-500.0,0.00015372,2]
[403833158,1769575841582,-517.8321028,0.00015372,2]
[403833159,1769575841591,-154.12320285,0.00015372,2]
[403833160,1769575841600,-202.2917898,0.00015372,2]
[403833161,1769575841610,-151.0,0.00015372,2]
[403833162,1769575841619,-160.45551813,0.00015372,2]
[403833163,1769575841628,-200.0,0.00015372,2]
[403833164,1769575841638,-500.0,0.00015372,2]
[403833165,1769575841647,-500.0,0.00015372,2]
[403833166,1769575841656,-500.0,0.00015372,2]
[403833167,1769575841665,-500.0,0.00015372,2]
[403833168,1769575841674,-500.0,0.00015372,2]
[403833169,1769575841683,-513.90151106,0.00015372,2]
[403833170,1769575841692,-151.0,0.00015381,2]
[403833171,1769575841701,-422.031033,0.00015383,2]
[403833172,1769575841711,-15883.68149141,0.00015384,2]
[403833173,1769575841719,-1054.21579402,0.00015392,2]
[403833174,1769575841728,-500.0,0.00015399,2]
[403833175,1769575841738,-839.0,0.00015399,2]
[403833176,1769575841747,-500.0,0.00015399,2]
[403833177,1769575841756,-500.0,0.00015399,2]
[403833178,1769575841765,-152.40043593,0.00015399,2]
[403833179,1769575841776,-500.0,0.00015399,2]
[403833180,1769575841785,-500.0,0.00015399,2]
[403833181,1769575841795,-240.53397898,0.00015399,2]
[403833182,1769575841806,-534.16290156,0.00015399,2]
[403833183,1769575841817,-500.0,0.00015399,2]
[403833184,1769575841830,-150.0,0.00015399,2]
[403833185,1769575841840,-500.0,0.00015399,2]
[403833186,1769575841850,-500.0,0.00015399,2]
[403833187,1769575841859,-500.0,0.00015399,2]
[403833188,1769575841868,-265.63318921,0.00015399,2]
[403833189,1769575841877,-500.0,0.00015399,2]
[403833190,1769575841886,-150.0,0.00015399,2]
[403833191,1769575841898,-500.0,0.00015399,2]
[403833192,1769575841907,-200.0,0.00015399,2]
[403833193,1769575841916,-200.0,0.00015399,2]
[403833194,1769575841925,-150.0,0.00015399,2]
[403833195,1769575841935,-500.0,0.00015399,2]
[403833196,1769575841944,-150.0,0.00015399,2]
[403833197,1769575841953,-151.0,0.00015414,2]
[403833198,1769575841967,-500.0,0.00015453,2]
[403833199,1769575841976,-839.0,0.00015453,2]
[403833200,1769575841986,-500.0,0.00015453,2]
[403833201,1769575841996,-500.0,0.00015453,2]
[403833202,1769575842005,-500.0,0.00015453,2]
[403833203,1769575842015,-500.0,0.00015453,2]
[403833204,1769575842025,-500.0,0.00015453,2]
[403833205,1769575842035,-150.0,0.00015453,2]
[403833206,1769575842044,-500.0,0.00015453,2]
[403833207,1769575842054,-500.0,0.00015453,2]
[403833208,1769575842063,-500.0,0.00015453,2]
[403833209,1769575842073,-500.0,0.00015453,2]
[403833210,1769575842083,-150.0,0.00015453,2]
[403833211,1769575842092,-378.19090217,0.00015453,2]
[403833212,1769575842101,-251.7333692,0.00015453,2]
[403833213,1769575842111,-201.72695087,0.00015453,2]
[403833214,1769575842120,-237.1461549,0.00015463,2]
[403833215,1769575842130,-500.0,0.00015463,2]
[403833216,1769575842139,-500.0,0.00015463,2]
[403833217,1769575842148,-500.0,0.00015463,2]
[403833218,1769575842157,-500.0,0.00015463,2]
[403833219,1769575842166,-500.0,0.00015463,2]
[403833220,1769575842176,-500.0,0.00015463,2]
[403833221,1769575842185,-500.0,0.00015463,2]
[403833222,1769575842194,-500.0,0.00015463,2]
[403833223,1769575842203,-528.82732304,0.00015463,2]
[403833224,1769575842212,-500.0,0.00015463,2]
[403833225,1769575842221,-500.0,0.00015463,2]
[403833226,1769575842230,-500.0,0.00015463,2]
[403833227,1769575842240,-500.0,0.00015463,2]
[403833228,1769575842249,-500.0,0.00015463,2]
[403833229,1769575842258,-500.0,0.00015463,2]
[403833230,1769575842267,-500.0,0.00015463,2]
[403833231,1769575842276,-500.0,0.00015463,2]
[403833232,1769575842292,-502.53550633,0.00015463,2]
[403833233,1769575842301,-500.0,0.00015463,2]
[403833234,1769575842310,-500.0,0.00015463,2]
[403833235,1769575842320,-500.0,0.00015463,2]
[403833236,1769575842329,-500.0,0.00015463,2]
[403833237,1769575842338,-504.1508484,0.00015463,2]
[403833238,1769575842352,-500.0,0.00015463,2]
[403833239,1769575842361,-500.0,0.00015463,2]
[403833240,1769575842370,-500.0,0.00015463,2]
[403833241,1769575842379,-508.82801883,0.00015463,2]
[403833242,1769575842388,-500.0,0.00015463,2]
[403833243,1769575842397,-500.0,0.00015463,2]
[403833244,1769575842406,-500.0,0.00015463,2]
[403833245,1769575842415,-510.97406699,0.00015463,2]
[403833246,1769575842424,-1085.8,0.0001547,2]
[403833247,1769575842434,-500.0,0.00015508,2]
[403833248,1769575842443,-839.0,0.00015508,2]
[403833249,1769575842452,-150.0,0.00015508,2]
[403833250,1769575842461,-500.0,0.00015508,2]
[403833251,1769575842470,-500.0,0.00015508,2]
[403833252,1769575842479,-500.0,0.00015508,2]
[403833253,1769575842489,-500.0,0.00015508,2]
[403833254,1769575842498,-500.0,0.00015508,2]
[403833255,1769575842507,-500.0,0.00015508,2]
[403833256,1769575842516,-500.0,0.00015508,2]
[403833257,1769575842525,-235.50390468,0.00015508,2]
[403833258,1769575842534,-192.79862973,0.00015517,2]
[403833259,1769575842544,-500.0,0.00015563,2]
[403833260,1769575842554,-839.0,0.00015563,2]
[403833261,1769575842563,-500.0,0.00015563,2]
[403833262,1769575842572,-500.0,0.00015563,2]
[403833263,1769575842582,-500.0,0.00015563,2]
[403833264,1769575842591,-500.0,0.00015563,2]
[403833265,1769575842600,-500.0,0.00015563,2]
[403833266,1769575842609,-500.0,0.00015563,2]
[403833267,1769575842619,-500.0,0.00015563,2]
[403833268,1769575842628,-298.742,0.00015586,2]
[403833269,1769575842637,-578.36386729,0.00015587,2]
[403833270,1769575842647,-500.0,0.00015587,2]
[403833271,1769575842656,-500.0,0.00015587,2]
[403833272,1769575842665,-208.46996814,0.00015587,2]
[403833273,1769575842675,-500.0,0.00015587,2]
[403833274,1769575842684,-500.0,0.00015587,2]
[403833275,1769575842693,-474.24179725,0.00015587,2]
[403833276,1769575842702,-500.0,0.00015587,2]
[403833277,1769575842712,-500.0,0.00015587,2]
[403833278,1769575842721,-355.21403355,0.00015587,2]
[403833279,1769575842733,-500.0,0.00015587,2]
[403833280,1769575842743,-500.0,0.00015587,2]
[403833281,1769575842752,-500.0,0.00015587,2]
[403833282,1769575842762,-500.0,0.00015587,2]
[403833283,1769575842771,-509.24863129,0.00015587,2]
[403833284,1769575842780,-500.0,0.00015587,2]
[403833285,1769575842790,-500.0,0.00015587,2]
[403833286,1769575842799,-508.81411293,0.00015587,2]
[403833287,1769575842808,-623.96318199,0.00015587,2]